[Event "ROU-chT Men Superliga 2018"]
[Site "Sovata"]
[Date "2018.11.25"]
[Round "2"]
[White "Dobre, Mihai"]
[Black "Scripcaru, George-Daniel"]
[Result "1/2-1/2"]
[ECO "B01"]
[WhiteElo "2104"]
[BlackElo "2176"]
[Annotator "NA"]
[PlyCount "141"]
[EventDate "2018.11.24"]
[EventType "team-tourn"]
[EventCountry "ROU"]
[SourceTitle "playchess.com"]
[Source "ChessBase"]
[SourceQuality "1"]
[TimeControl "40/5400+30:1800+30"]

1. e4 {[%emt 0:00:00]} d5 {[%emt 0:00:00]} 2. exd5 {[%emt 0:00:00]} Qxd5 {[%emt 0:00:00]} 3. Nc3 {[%emt 0:00:00]} Qd8 {[%emt 0:00:00]} 4. d4 {[%emt 0:00:00]} Nf6 {[%emt 0:00:03]} 5. Nf3 {[%emt 0:00:12]} Bg4 {[%emt 0:00:10]} 6. h3 {[%emt 0:00:21]} Bxf3 {[%emt 0:00:09]} 7. Qxf3 {[%emt 0:00:02]} c6 {[%emt 0:00:09]} 8. Qd3 {[%emt 0:01:44]} e6 {[%emt 0:00:15]} 9. g3 {[%emt 0:00:56]} Bd6 {[%emt 0:00:23]} 10. Bg2 {[%emt 0:00:27]} Nbd7 {[%emt 0:01:16]} 11. O-O {[%emt 0:00:24]} O-O {[%emt 0:01:54]} 12. Rd1 {[%emt 0:02:56]} Qa5 {[%emt 0:00:20]} 13. a3 {[%emt 0:11:41]} Rad8 {[%emt 0:00:56]} 14. Bd2 {[%emt 0:04:40]} Qc7 {[%emt 0:01:25]} 15. Ne2 {[%emt 0:05:57]} e5 {[%emt 0:01:27]} 16. c4 {[%emt 0:03:26]} exd4 {[%emt 0:01:00]} 17. Nxd4 {[%emt 0:06:18]} Nc5 {[%emt 0:03:15]} 18. Qf5 {[%emt 0:01:27]} Rfe8 {[%emt 0:13:14]} 19. Bb4 {[%emt 0:22:30]} Nce4 {[%emt 0:09:30]} 20. Qa5 {[%emt 0:11:41]} b6 {[%emt 0:03:43]} 21. Bxd6 {[%emt 0:02:43]} Rxd6 {[%emt 0:04:39]} 22. Qa4 {[%emt 0:00:11]} Qd7 {[%emt 0:07:16]} 23. Nf3 {[%emt 0:01:07]} Rd8 {[%emt 0:01:47]} 24. Re1 {[%emt 0:03:55]} Qf5 {[%emt 0:04:43]} 25. Re2 {[%emt 0:03:07]} b5 {[%emt 0:21:51]} 26. Qc2 {[%emt 0:04:48]} Qc5 {[%emt 0:03:28]} 27. Rxe4 {[%emt 0:01:02]} Nxe4 {[%emt 0:00:10]} 28. Qxe4 {[%emt 0:00:01]} Qxc4 {[%emt 0:00:55]} 29. Qxc4 {[%emt 0:00:55]} bxc4 {[%emt 0:00:07]} 30. Ne5 {[%emt 0:01:19]} Rd1+ {[%emt 0:00:08]} 31. Rxd1 {[%emt 0:00:08]} Rxd1+ {[%emt 0:00:05]} 32. Bf1 {[%emt 0:00:20]} c3 {[%emt 0:00:50]} 33. bxc3 {[%emt 0:00:21]} c5 {[%emt 0:00:22]} 34. Nd3 {[%emt 0:05:54]} Ra1 {[%emt 0:01:39]} 35. Nxc5 {[%emt 0:00:05]} Rxa3 {[%emt 0:00:03]} 36. c4 {[%emt 0:00:26]} a5 {[%emt 0:01:07]} 37. Nd7 {[%emt 0:02:26]} a4 {[%emt 0:01:19]} 38. Nb6 {[%emt 0:03:47]} Ra1 {[%emt 0:00:08]} 39. Nxa4 {[%emt 0:01:29]} Rxa4 {[%emt 0:00:08]} 40. Kg2 {[%emt 0:00:00]} Ra3 {[%emt 0:00:00]} 41. Be2 {[%emt 0:00:20]} Rc3 {[%emt 0:00:15]} 42. f3 {[%emt 0:01:10]} h5 {[%emt 0:00:17]} 43. h4 {[%emt 0:01:10]} g6 {[%emt 0:00:30]} 44. Kf2 {[%emt 0:02:07]} Kg7 {[%emt 0:00:07]} 45. Ke1 Kf6 {[%emt 0:00:12]} 46. Kd2 {[%emt 0:00:10]} Ra3 {[%emt 0:00:11]} 47. Bd3 {[%emt 0:00:57]} Ke5 {[%emt 0:00:31]} 48. Be4 {[%emt 0:02:22]} Kd4 {[%emt 0:00:10]} 49. Bd5 {[%emt 0:00:33]} Ra2+ {[%emt 0:00:52]} 50. Ke1 {[%emt 0:00:00]} Ke3 {[%emt 0:00:58]} 51. Kf1 {[%emt 0:00:06]} f6 {[%emt 0:00:20]} 52. f4 {[%emt 0:01:49]} Rc2 {[%emt 0:00:21]} 53. Kg1 {[%emt 0:00:34]} Ra2 {[%emt 0:01:50]} 54. Kf1 {[%emt 0:00:18]} Ra7 {[%emt 0:02:14]} 55. Kg2 {[%emt 0:00:22]} Rg7 {[%emt 0:00:15]} 56. Be6 {[%emt 0:01:00]} f5 {[%emt 0:00:55]} 57. Bd5 {[%emt 0:00:14]} Rc7 {[%emt 0:00:24]} 58. Kf1 {[%emt 0:00:37]} Ra7 {[%emt 0:00:15]} 59. Kg2 {[%emt 0:00:18]} Ra2+ {[%emt 0:00:10]} 60. Kf1 {[%emt 0:00:10]} Rc2 {[%emt 0:01:15]} 61. Kg1 {[%emt 0:00:40]} Ra2 {[%emt 0:01:44]} 62. Kf1 {[%emt 0:00:05]} Ra7 {[%emt 0:00:57]} 63. Kg2 {[%emt 0:00:06]} Rc7 {[%emt 0:00:04]} 64. Kf1 {[%emt 0:00:40]} Kd3 {[%emt 0:00:12]} 65. Kf2 {[%emt 0:01:06]} Re7 {[%emt 0:00:57]} 66. Kf1 {[%emt 0:00:56]} Rc7 {[%emt 0:01:03]} 67. Kf2 {[%emt 0:00:06]} Rxc4 {[%emt 0:00:09]} 68. Bxc4+ {[%emt 0:00:08]} Kxc4 {[%emt 0:00:05]} 69. Ke2 {[%emt 0:01:07]} Kd4 {[%emt 0:00:50]} 70. Kd2 {[%emt 0:00:17]} Ke4 {[%emt 0:00:06]} 71. Ke2 {[%emt 0:00:03] Ke5} 1/2-1/2

[Event "ROU-chT Men Superliga 2018"]
[Site "Sovata"]
[Date "2018.11.26"]
[Round "3"]
[White "Dicu, Razvan-Stefan"]
[Black "Andronescu, Madalin"]
[Result "1-0"]
[ECO "A45"]
[WhiteElo "2274"]
[BlackElo "2070"]
[Annotator "ChessBase"]
[PlyCount "173"]
[EventDate "2018.11.24"]
[EventType "team-tourn"]
[EventCountry "ROU"]
[SourceTitle "playchess.com"]
[Source "ChessBase"]
[SourceQuality "1"]
[TimeControl "40/5400+30:1800+30"]

1. d4 {[%emt 0:00:00]} Nf6 {[%emt 0:00:00]} 2. Nc3 {[%emt 0:00:00]} d5 {[%emt 0:00:19]} 3. Bf4 {[%emt 0:00:33]} e6 {[%emt 0:00:12]} 4. e3 {[%emt 0:01:41]} Be7 {[%emt 0:00:48]} 5. Bd3 {[%emt 0:01:08]} c5 {[%emt 0:01:44]} 6. Nb5 {[%emt 0:07:52]} Na6 {[%emt 0:00:22]} 7. dxc5 {[%emt 0:05:50]} Bxc5 {[%emt 0:00:43]} 8. Nf3 {[%emt 0:00:54]} O-O {[%emt 0:00:09]} 9. c3 {[%emt 0:01:33]} Be7 {[%emt 0:12:20]} 10. O-O {[%emt 0:15:51]} Bd7 {[%emt 0:02:01]} 11. Ne5 {[%emt 0:01:44]} Be8 {[%emt 0:02:26]} 12. a4 {[%emt 0:10:36]} Ne4 {[%emt 0:14:08]} 13. Bxe4 {[%emt 0:06:31]} dxe4 {[%emt 0:00:07]} 14. Qxd8 {[%emt 0:01:36]} Rxd8 {[%emt 0:00:51]} 15. Nc4 {[%emt 0:00:07]} Nc5 {[%emt 0:01:07]} 16. Bc7 {[%emt 0:18:17]} Rd7 {[%emt 0:02:34]} 17. Bd6 {[%emt 0:01:34]} a6 {[%emt 0:01:27]} 18. Bxc5 {[%emt 0:04:52]} axb5 {[%emt 0:01:34]} 19. Bxe7 {[%emt 0:00:08]} Rxe7 {[%emt 0:00:03]} 20. Nd6 {[%emt 0:00:18]} bxa4 {[%emt 0:06:22]} 21. Nxe8 {[%emt 0:00:15]} Rfxe8 {[%emt 0:01:05]} 22. Rxa4 {[%emt 0:00:07]} f5 {[%emt 0:00:41]} 23. Rd1 {[%emt 0:00:07]} Rc7 {[%emt 0:00:45]} 24. h4 {[%emt 0:05:57]} Kf7 {[%emt 0:03:13]} 25. Rd6 {[%emt 0:01:21]} Kg6 {[%emt 0:12:37]} 26. g4 {[%emt 0:02:34]} fxg4 {[%emt 0:00:56]} 27. Rxe4 {[%emt 0:00:29]} Kh5 {[%emt 0:00:04]} 28. Rdd4 {[%emt 0:04:33]} e5 {[%emt 0:01:47]} 29. Rb4 {[%emt 0:00:22]} Kxh4 {[%emt 0:00:19]} 30. Rxg4+ {[%emt 0:00:09]} Kh5 {[%emt 0:00:05]} 31. Rh4+ {[%emt 0:00:11]} Kg6 {[%emt 0:00:09]} 32. Rbg4+ {[%emt 0:00:06]} Kf5 {[%emt 0:00:09]} 33. e4+ {[%emt 0:00:15]} Kf6 {[%emt 0:00:44]} 34. Rxh7 {[%emt 0:00:26]} Rd8 {[%emt 0:00:05]} 35. Rh5 {[%emt 0:00:32]} g6 {[%emt 0:00:13]} 36. Rh6 {[%emt 0:03:29]} Rg7 {[%emt 0:00:07]} 37. Rh3 {[%emt 0:00:07]} Rd2 {[%emt 0:01:00]} 38. b4 {[%emt 0:00:32]} Rc7 {[%emt 0:03:27]} 39. Rhg3 {[%emt 0:00:21]} Rg7 {[%emt 0:00:50]} 40. Rf3+ {[%emt 0:00:00]} Ke6 {[%emt 0:00:00]} 41. Rfg3 {[%emt 0:00:20]} Kf6 {[%emt 0:01:01]} 42. Kf1 {[%emt 0:04:51]} Rg8 {[%emt 0:04:38]} 43. Rf3+ {[%emt 0:06:23]} Ke6 {[%emt 0:00:08]} 44. Rh4 {[%emt 0:00:14]} Rd7 {[%emt 0:02:19]} 45. Rh6 {[%emt 0:00:53]} Rc7 {[%emt 0:04:34]} 46. Rg3 {[%emt 0:04:23]} Kf6 {[%emt 0:00:10]} 47. Ke2 {[%emt 0:00:07]} Rc4 {[%emt 0:09:11]} 48. Kd3 {[%emt 0:00:51]} b5 {[%emt 0:00:38]} 49. Rg4 {[%emt 0:00:49]} Rc7 {[%emt 0:03:57]} 50. Kc2 {[%emt 0:00:38]} Ra7 {[%emt 0:00:15]} 51. Kb3 {[%emt 0:07:23]} Rd7 {[%emt 0:00:12]} 52. Rg3 {[%emt 0:00:33]} Rd2 {[%emt 0:01:07]} 53. Rh7 {[%emt 0:02:43]} Rxf2 {[%emt 0:03:38]} 54. Rb7 {[%emt 0:00:07]} Rf4 {[%emt 0:00:29]} 55. Rb6+ {[%emt 0:00:16]} Kf7 {[%emt 0:00:07]} 56. Re3 {[%emt 0:08:19]} g5 {[%emt 0:00:21]} 57. Rxb5 {[%emt 0:00:29]} Ke6 {[%emt 0:04:52]} 58. Rb6+ {[%emt 0:00:44]} Kf7 {[%emt 0:03:03]} 59. Rh3 {[%emt 0:01:13]} Rh4 {[%emt 0:02:14]} 60. Rxh4 {[%emt 0:00:38]} gxh4 {[%emt 0:00:06]} 61. Rh6 {[%emt 0:00:08]} Rg4 {[%emt 0:00:08]} 62. b5 {[%emt 0:00:29]} Kg7 {[%emt 0:00:05]} 63. Rh5 {[%emt 0:01:29]} Kg6 {[%emt 0:00:05]} 64. Rh8 {[%emt 0:00:10]} Kg7 {[%emt 0:00:05]} 65. Rd8 {[%emt 0:01:10]} h3 {[%emt 0:00:38]} 66. Rd1 {[%emt 0:01:03]} h2 {[%emt 0:00:32]} 67. Rh1 {[%emt 0:00:08]} Rh4 {[%emt 0:00:06]} 68. c4 {[%emt 0:01:38]} Kf6 {[%emt 0:00:07]} 69. b6 {[%emt 0:00:13]} Rh7 {[%emt 0:00:38]} 70. c5 {[%emt 0:00:15]} Ke6 {[%emt 0:00:08]} 71. Kc4 {[%emt 0:00:25]} Kd7 {[%emt 0:03:29]} 72. Kd5 {[%emt 0:00:13]} Rh6 {[%emt 0:00:31]} 73. Kxe5 {[%emt 0:01:35]} Kc6 {[%emt 0:00:07]} 74. Kf4 {[%emt 0:02:11]} Rh4+ {[%emt 0:01:20]} 75. Kf5 {[%emt 0:00:33]} Rh5+ {[%emt 0:00:08]} 76. Kf6 {[%emt 0:00:14]} Rh3 {[%emt 0:08:50]} 77. e5 {[%emt 0:00:38]} Kb7 {[%emt 0:00:04]} 78. e6 {[%emt 0:00:29]} Rf3+ {[%emt 0:00:09]} 79. Kg7 {[%emt 0:00:19]} Rg3+ {[%emt 0:01:42]} 80. Kf7 {[%emt 0:00:07]} Rf3+ {[%emt 0:00:03]} 81. Ke8 {[%emt 0:00:07]} Re3 {[%emt 0:00:21]} 82. e7 {[%emt 0:00:23]} Rh3 {[%emt 0:00:09]} 83. Kd7 {[%emt 0:00:26]} Rd3+ {[%emt 0:00:07]} 84. Ke6 {[%emt 0:00:04]} Re3+ {[%emt 0:00:06]} 85. Kd5 {[%emt 0:00:22]} Rxe7 {[%emt 0:02:14]} 86. Rxh2 {[%emt 0:00:07]} Rg7 {[%emt 0:00:06]} 87. Ke4 1-0

[Event "ROU-chT Men Superliga 2018"]
[Site "Sovata"]
[Date "2018.11.26"]
[Round "3"]
[White "Pop, Alexandru"]
[Black "Luncasu, Raul-Ionut"]
[Result "1-0"]
[ECO "A61"]
[WhiteElo "2274"]
[BlackElo "2187"]
[Annotator "NA"]
[PlyCount "65"]
[EventDate "2018.11.24"]
[EventType "team-tourn"]
[EventCountry "ROU"]
[SourceTitle "playchess.com"]
[Source "ChessBase"]
[SourceQuality "1"]
[TimeControl "40/5400+30:1800+30"]

1. d4 {[%emt 0:00:00]} Nf6 {[%emt 0:00:00]} 2. Nf3 {[%emt 0:00:00]} c5 {[%emt 0:00:00]} 3. d5 {[%emt 0:00:26]} e6 {[%emt 0:00:00]} 4. c4 {[%emt 0:00:34]} exd5 {[%emt 0:00:19]} 5. cxd5 {[%emt 0:00:11]} d6 {[%emt 0:00:03]} 6. Nc3 {[%emt 0:03:41]} g6 {[%emt 0:00:27]} 7. e3 {[%emt 0:00:26] A61: Modern Benoni: Nf3 without early e4} Bg7 {[%emt 0:00:18]} 8. Be2 {[%emt 0:00:13]} O-O {[%emt 0:00:09]} 9. O-O {[%emt 0:00:05]} Na6 {[%emt 0:02:09]} (9... Bg4 10. h3 Bxf3 11. Bxf3 Nbd7 12. Qc2 a6 13. a4 c4 14. Be2 Rc8 15. a5 Rc5 16. Qa4 Re8 17. Rd1 Ne4 18. Nxe4 Rxe4 {0-1 (28) Inarkiev,E (2690)-Dubov,D (2691) Satka 2018}) 10. Nd2 {[%emt 0:06:29]} Nc7 {[%emt 0:00:30]} 11. e4 {[%emt 0:01:54]} Re8 {[%emt 0:01:18]} 12. Re1 {[%emt 0:04:55]} a6 {[%emt 0:01:18]} 13. a4 {[%emt 0:00:14]} Rb8 {[%emt 0:15:06]} 14. a5 $1 {[%emt 0:04:32]} b5 $146 {[%emt 0:00:43]} 15. axb6 $1 {[%emt 0:00:55]} Rxb6 {[%emt 0:00:03]} 16. Nc4 {[%emt 0:15:49]} Rb4 {[%emt 0:00:36]} 17. f3 {[%emt 0:11:10]} Bf8 {[%emt 0:34:20]} 18. Bg5 {[%emt 0:09:34]} h6 {[%emt 0:02:24]} 19. Bh4 {[%emt 0:00:21]} g5 {[%emt 0:01:39]} 20. Bf2 {[%emt 0:00:46]} Bd7 {[%emt 0:01:18]} 21. Ra2 {[%emt 0:14:36]} Nh5 {[%emt 0:03:47]} 22. g3 {[%emt 0:11:20]} Ng7 $18 {[%emt 0:03:51]} (22... Nf6 $16 {keeps fighting.}) 23. Bf1 {[%emt 0:03:21]} f5 {[%emt 0:11:07]} 24. e5 {[%emt 0:00:13]} dxe5 {[%emt 0:00:10]} 25. d6 {[%emt 0:01:19]} Nce6 {[%emt 0:02:23]} 26. Nd5 {[%emt 0:03:35]} Rb8 {[%emt 0:01:40]} 27. Nxe5 {[%emt 0:00:10]} Nh5 {[%emt 0:09:26]} 28. Nc7 {[%emt 0:02:06]} Rb6 {[%emt 0:03:25]} 29. Nxe8 {[%emt 0:00:42]} Qxe8 {[%emt 0:00:02]} 30. Rxa6 {[%emt 0:00:44]} Rxa6 {[%emt 0:00:09]} 31. Bxa6 {[%emt 0:00:08]} Nhg7 {[%emt 0:00:02]} 32. Bc4 {[%emt 0:00:36]} Kh7 {[%emt 0:00:11]} 33. Qd5 {[%emt 0:00:55]} 1-0

[Event "ROU-chT Men Superliga 2018"]
[Site "Sovata"]
[Date "2018.11.26"]
[Round "3"]
[White "Scripcaru, George-Daniel"]
[Black "Vasiesiu, Victor"]
[Result "1/2-1/2"]
[ECO "A05"]
[WhiteElo "2176"]
[BlackElo "2270"]
[Annotator "NA"]
[PlyCount "49"]
[EventDate "2018.11.24"]
[EventType "team-tourn"]
[EventCountry "ROU"]
[SourceTitle "playchess.com"]
[Source "ChessBase"]
[SourceQuality "1"]
[TimeControl "40/5400+30:1800+30"]

1. Nf3 {[%emt 0:00:00]} Nf6 {[%emt 0:00:00]} 2. g3 {[%emt 0:00:00]} g6 {[%emt 0:00:00]} 3. b3 {[%emt 0:00:03]} Bg7 {[%emt 0:00:01]} 4. Bb2 {[%emt 0:00:06]} O-O {[%emt 0:01:53]} 5. Bg2 {[%emt 0:02:53]} c5 {[%emt 0:00:42]} 6. c4 {[%emt 0:01:08]} Nc6 {[%emt 0:00:41]} 7. O-O {[%emt 0:00:10]} d6 {[%emt 0:02:05]} 8. d4 {[%emt 0:08:31]} cxd4 {[%emt 0:04:27]} 9. Nxd4 {[%emt 0:00:13]} Bd7 {[%emt 0:00:09]} 10. Nc2 {[%emt 0:07:50]} a6 {[%emt 0:07:14]} 11. Nc3 {[%emt 0:00:06]} Qa5 {[%emt 0:06:14]} 12. Nd5 {[%emt 0:20:48] A38: Symmetrical English vs ...g6: 4 Bg2 Bg7 5 Nf3 Nf6} Nxd5 {[%emt 0:02:02]} 13. Bxg7 {[%emt 0:00:07]} Nc3 {[%emt 0:05:43]} 14. Bxc3 {[%emt 0:00:08]} Qxc3 {[%emt 0:00:04]} 15. Ne3 {[%emt 0:04:05]} Be6 {[%emt 0:02:28] LiveBook: 6 Games} 16. Nd5 {[%emt 0:03:48]} (16. Rc1 Qa5 17. Qc2 Rfc8 18. Qb2 Rab8 19. Rfd1 Qe5 {½-½ (43) Topalov,V (2752)-Grischuk,A (2754) London 2012}) 16... Bxd5 {[%emt 0:00:13]} 17. Qxd5 $146 {[%emt 0:07:08]} ({Predecessor:} 17. Bxd5 Rac8 18. Qc1 Qa5 19. Rd1 b5 20. Bxc6 Rxc6 21. Qg5 Re8 22. cxb5 Qxb5 {½-½ (22) Cvetkovic,S (2303)-Pantelic,S (2358) Veliko Gradiste 2016}) 17... Rac8 {[%emt 0:10:21]} 18. Rfd1 {[%emt 0:00:57]} Rc7 {[%emt 0:01:16]} 19. h4 {[%emt 0:12:23]} h5 {[%emt 0:03:53]} 20. Qe4 {[%emt 0:03:39]} Qe5 {[%emt 0:02:16]} 21. Qd3 {[%emt 0:03:08]} Rb8 $11 {[%emt 0:04:35]} 22. Rac1 {[%emt 0:01:08]} Qf6 {[%emt 0:05:05]} 23. Qd2 {[%emt 0:04:55]} b6 {[%emt 0:04:24]} 24. Bd5 {[%emt 0:01:58]} Ne5 {[%emt 0:04:22]} 25. Kg2 {[%emt 0:05:56]} 1/2-1/2

[Event "ROU-chT Men Superliga 2018"]
[Site "Sovata"]
[Date "2018.11.26"]
[Round "3"]
[White "Popescu, Daniel-Vasilica"]
[Black "Nastase, Robert-Paul"]
[Result "0-1"]
[ECO "C24"]
[WhiteElo "2131"]
[BlackElo "2296"]
[Annotator "ChessBase"]
[PlyCount "124"]
[EventDate "2018.11.24"]
[EventType "team-tourn"]
[EventCountry "ROU"]
[SourceTitle "playchess.com"]
[Source "ChessBase"]
[SourceQuality "1"]
[TimeControl "40/5400+30:1800+30"]

1. e4 {[%emt 0:00:00]} e5 {[%emt 0:00:00]} 2. Bc4 {[%emt 0:00:00]} Nf6 {[%emt 0:00:00]} 3. d3 {[%emt 0:00:22]} Bc5 {[%emt 0:00:10]} 4. Nf3 {[%emt 0:00:05]} d6 {[%emt 0:00:12]} 5. c3 {[%emt 0:01:45]} Nc6 {[%emt 0:00:06]} 6. Be3 {[%emt 0:01:27]} Bb6 {[%emt 0:01:37]} 7. Nbd2 {[%emt 0:06:01]} O-O {[%emt 0:07:40]} 8. Bb3 {[%emt 0:03:11]} Ng4 {[%emt 0:05:03]} 9. Bxb6 {[%emt 0:04:05]} axb6 {[%emt 0:00:05]} 10. O-O {[%emt 0:04:29]} Ne7 {[%emt 0:05:26]} 11. d4 {[%emt 0:05:05]} Ng6 {[%emt 0:00:23]} 12. Re1 {[%emt 0:06:16]} Qf6 {[%emt 0:15:03]} 13. Nf1 {[%emt 0:10:38]} Nf4 {[%emt 0:00:35]} 14. h3 {[%emt 0:25:27]} Nh6 {[%emt 0:00:16]} 15. Ne3 {[%emt 0:08:30]} c6 {[%emt 0:27:01]} 16. Kh2 {[%emt 0:05:35]} b5 {[%emt 0:07:40]} 17. Ng1 {[%emt 0:06:50]} Kh8 {[%emt 0:10:30]} 18. Qf3 {[%emt 0:00:25]} Ng8 {[%emt 0:02:40]} 19. Rad1 {[%emt 0:03:07]} Qh6 {[%emt 0:09:08]} 20. dxe5 {[%emt 0:00:53]} dxe5 {[%emt 0:00:06]} 21. Ng4 {[%emt 0:01:08]} Qg5 {[%emt 0:00:58]} 22. Rd6 {[%emt 0:01:42]} Qe7 {[%emt 0:01:27]} 23. Rd2 {[%emt 0:00:44]} Bxg4 {[%emt 0:01:01]} 24. Qxg4 {[%emt 0:00:44]} Nf6 {[%emt 0:00:05]} 25. Qf3 {[%emt 0:00:48]} Rfd8 {[%emt 0:00:48]} 26. Red1 {[%emt 0:00:07]} Kg8 {[%emt 0:00:25]} 27. g3 {[%emt 0:00:52]} Ne6 {[%emt 0:00:55]} 28. Bxe6 {[%emt 0:00:36]} fxe6 {[%emt 0:02:41]} 29. Rxd8+ {[%emt 0:01:54]} Rxd8 {[%emt 0:00:06]} 30. Rxd8+ {[%emt 0:00:29]} Qxd8 {[%emt 0:00:05]} 31. Qe2 {[%emt 0:00:05]} Qa5 {[%emt 0:00:05]} 32. a3 {[%emt 0:01:09]} Qa4 {[%emt 0:00:05]} 33. f3 {[%emt 0:00:47]} Kf7 {[%emt 0:00:42]} 34. Qd2 {[%emt 0:00:36]} h6 {[%emt 0:00:07]} 35. Ne2 {[%emt 0:00:37]} Ke7 {[%emt 0:00:06]} 36. h4 {[%emt 0:00:32]} Nd7 {[%emt 0:01:24]} 37. g4 {[%emt 0:00:21]} Nb6 {[%emt 0:01:49]} 38. g5 {[%emt 0:00:56]} Nc4 {[%emt 0:00:15]} 39. Qc1 {[%emt 0:00:05]} h5 {[%emt 0:00:41]} 40. g6 {[%emt 0:00:00]} Qb3 {[%emt 0:00:00]} 41. Ng3 {[%emt 0:21:44]} Qxb2+ {[%emt 0:00:10]} 42. Qxb2 {[%emt 0:00:08]} Nxb2 {[%emt 0:00:02]} 43. Nxh5 {[%emt 0:00:05]} Nc4 {[%emt 0:05:49]} 44. Kg3 {[%emt 0:01:21]} Kf8 {[%emt 0:08:23]} 45. Kg4 {[%emt 0:01:27]} Nd2 {[%emt 0:06:06]} 46. Ng3 {[%emt 0:02:06]} Nb1 {[%emt 0:00:04]} 47. h5 {[%emt 0:01:48]} Nxa3 {[%emt 0:04:24]} 48. Kg5 {[%emt 0:00:37]} Nc4 {[%emt 0:00:44]} 49. h6 {[%emt 0:00:14]} gxh6+ {[%emt 0:00:03]} 50. Kxh6 {[%emt 0:02:33]} Nd6 {[%emt 0:02:43]} 51. Kh7 {[%emt 0:02:26]} Ne8 {[%emt 0:00:04]} 52. Ne2 {[%emt 0:02:16]} c5 {[%emt 0:02:05]} 53. f4 {[%emt 0:00:09]} b4 {[%emt 0:04:15]} 54. cxb4 {[%emt 0:00:46]} cxb4 {[%emt 0:00:05]} 55. f5 {[%emt 0:00:53]} exf5 {[%emt 0:01:07]} 56. exf5 {[%emt 0:00:06]} b3 {[%emt 0:00:05]} 57. Nc3 {[%emt 0:00:56]} b2 {[%emt 0:00:07]} 58. Kh6 {[%emt 0:00:21]} e4 {[%emt 0:00:15]} 59. Kg5 {[%emt 0:00:06]} e3 {[%emt 0:00:13]} 60. f6 {[%emt 0:00:16]} b1=Q {[%emt 0:01:13]} 61. Nxb1 {[%emt 0:01:03]} e2 {[%emt 0:00:05]} 62. f7 {[%emt 0:00:45]} Ng7 {[%emt 0:00:24]} 0-1

[Event "ROU-chT Men Superliga 2018"]
[Site "Sovata"]
[Date "2018.11.27"]
[Round "4"]
[White "Miron, Lucian-Costin"]
[Black "Vavric, Pavel"]
[Result "1-0"]
[ECO "A50"]
[WhiteElo "2465"]
[BlackElo "2351"]
[Annotator "ChessBase"]
[PlyCount "107"]
[EventDate "2018.11.24"]
[EventType "team-tourn"]
[EventCountry "ROU"]
[SourceTitle "playchess.com"]
[Source "ChessBase"]
[SourceQuality "1"]
[TimeControl "40/5400+30:1800+30"]

1. d4 {[%emt 0:10:05]} Nf6 {[%emt 0:00:00]} 2. c4 {[%emt 0:00:02]} b6 {[%emt 0:00:31]} 3. Nc3 {[%emt 0:07:41]} Bb7 {[%emt 0:00:23]} 4. d5 {[%emt 0:02:28]} e6 {[%emt 0:01:21]} 5. a3 {[%emt 0:01:16]} Bd6 {[%emt 0:24:19]} 6. Nf3 {[%emt 0:11:50]} O-O {[%emt 0:01:35]} 7. g3 {[%emt 0:00:21]} c6 {[%emt 0:04:01]} 8. Bg2 {[%emt 0:01:29]} Na6 {[%emt 0:06:21]} 9. O-O {[%emt 0:04:44]} cxd5 {[%emt 0:01:29]} 10. cxd5 {[%emt 0:04:00]} Nxd5 {[%emt 0:05:30]} 11. Nxd5 {[%emt 0:08:01]} exd5 {[%emt 0:00:06]} 12. b4 {[%emt 0:06:01]} Re8 {[%emt 0:07:18]} 13. Bb2 {[%emt 0:01:50]} Rc8 {[%emt 0:01:27]} 14. e3 {[%emt 0:04:49]} Nc7 {[%emt 0:05:18]} 15. Qd2 {[%emt 0:06:13]} Be7 {[%emt 0:05:56]} 16. Nd4 {[%emt 0:02:54]} Bf6 {[%emt 0:00:55]} 17. Rfc1 {[%emt 0:01:23]} Bxd4 {[%emt 0:15:18]} 18. Qxd4 {[%emt 0:04:09]} Ne6 {[%emt 0:00:50]} 19. Qd3 {[%emt 0:01:35]} Qg5 {[%emt 0:01:02]} 20. Rd1 {[%emt 0:03:40]} Qg6 {[%emt 0:02:27]} 21. Qxg6 {[%emt 0:03:53]} hxg6 {[%emt 0:00:05]} 22. Bxd5 {[%emt 0:01:01]} Bxd5 {[%emt 0:00:06]} 23. Rxd5 {[%emt 0:00:05]} Rc2 {[%emt 0:00:20]} 24. Rb1 {[%emt 0:05:07]} Rd8 {[%emt 0:01:48]} 25. h4 {[%emt 0:00:45]} Kf8 {[%emt 0:00:35]} 26. Be5 {[%emt 0:01:23]} f6 {[%emt 0:01:17]} 27. Bd6+ {[%emt 0:00:26]} Ke8 {[%emt 0:00:07]} 28. Rbd1 {[%emt 0:03:10]} Rdc8 {[%emt 0:01:42]} 29. R1d3 {[%emt 0:00:59]} Re2 {[%emt 0:04:51]} 30. g4 {[%emt 0:00:06]} Rc4 {[%emt 0:00:52]} 31. Bg3 {[%emt 0:00:03]} Nf8 {[%emt 0:00:22]} 32. Kg2 {[%emt 0:00:25]} Rec2 {[%emt 0:00:51]} 33. Kf3 {[%emt 0:00:45]} R2c3 {[%emt 0:00:14]} 34. Bb8 {[%emt 0:00:32]} a6 {[%emt 0:02:10]} 35. Ba7 {[%emt 0:01:32]} Rxd3 {[%emt 0:00:46]} 36. Rxd3 {[%emt 0:00:03]} Rc6 {[%emt 0:00:29]} 37. a4 {[%emt 0:01:31]} Kd8 {[%emt 0:01:57]} 38. b5 {[%emt 0:00:58]} axb5 {[%emt 0:01:48]} 39. axb5 {[%emt 0:00:02]} Re6 {[%emt 0:00:14]} 40. Bb8 {[%emt 0:00:00]} f5 {[%emt 0:00:00]} 41. g5 {[%emt 0:10:23]} Re4 {[%emt 0:06:01]} 42. Bg3 {[%emt 0:00:10]} Re6 {[%emt 0:11:41]} 43. Rc3 {[%emt 0:11:24]} d5 {[%emt 0:03:17]} 44. Rd3 {[%emt 0:00:36]} Nd7 {[%emt 0:00:07]} 45. Rxd5 {[%emt 0:00:05]} Ke7 {[%emt 0:00:04]} 46. Rd4 {[%emt 0:05:09]} Nc5 {[%emt 0:03:15]} 47. Bc7 {[%emt 0:00:02]} Ne4 {[%emt 0:00:33]} 48. Rd3 {[%emt 0:02:00]} Ke8 {[%emt 0:01:20]} 49. Rd8+ {[%emt 0:02:03]} Kf7 {[%emt 0:02:10]} 50. Rd7+ {[%emt 0:00:25]} Kf8 {[%emt 0:01:34]} 51. Rd3 {[%emt 0:00:22]} Ke8 {[%emt 0:00:21]} 52. Kg2 {[%emt 0:01:17]} Re7 {[%emt 0:02:14]} 53. Rd8+ {[%emt 0:00:46]} Kf7 {[%emt 0:00:06]} 54. Bxb6 {[%emt 0:00:02]} 1-0